bitfinex/quotes_ETHUSD_20250123
["timestamp","ask_amount","ask_price","bid_price","bid_amount"]
[1737618139688,3.10587,3219.7,3219.1,3.10645]
[1737618139879,3.10599,3219.6,3219.1,3.10645]
[1737618142753,3.10599,3219.6,3219.0,3.10655]
[1737618143492,0.8029,3219.8,3218.8,0.7965]
[1737618143790,3.88103,3219.3,3218.6,3.10688]
[1737618144099,3.10638,3219.2,3218.6,3.87138]
[1737618144657,0.7747,3219.3,3218.7,3.10683]
[1737618144857,3.88097,3219.3,3218.7,3.10683]
[1737618145596,3.88097,3219.3,3218.8,3.10674]
[1737618145758,3.88097,3219.3,3218.6,3.87138]
[1737618146574,3.88097,3219.3,3218.7,3.10682]
[1737618148695,3.88097,3219.3,3218.8,3.10674]
[1737618150199,0.7747,3219.6,3218.8,0.7645]
[1737618150403,0.7747,3219.6,3219.1,3.1064]
[1737618150997,3.88068,3219.6,3219.1,3.1064]
[1737618151155,4.62166927,3219.6,3219.1,3.1064]
[1737618151596,0.74098927,3219.6,3218.9,3.10665]
[1737618151800,3.10629,3219.3,3218.7,3.10677]
[1737618152597,3.10629,3219.3,3218.7,6.21355]
[1737618152761,3.10629,3219.3,3218.7,3.10677]
[1737618153097,3.10629,3219.3,3218.7,6.21355]
[1737618153406,3.10629,3219.3,3218.7,3.10675]
[1737618153757,3.804996,3219.3,3218.7,3.10675]
[1737618156105,3.804996,3219.3,3218.8,3.10673]
[1737618156400,3.804996,3219.3,3218.6,3.10687]
[1737618157474,3.804996,3219.3,3218.7,3.1068]
[1737618158695,3.10629,3219.3,3218.7,3.1068]
[1737618166226,3.10629,3219.3,3218.8,3.10669]
[1737618166387,3.10629,3219.3,3218.7,3.1068]
[1737618166922,0.7747,3219.5,3219.1,3.10638]
[1737618167079,3.86808,3219.8,3219.1,3.93878]
[1737618167280,0.7623,3219.8,3219.3,3.1062]
[1737618167521,0.7623,3219.8,3219.2,3.10635]
[1737618167729,0.7623,3219.8,3219.1,3.93877]
[1737618167885,0.7623,3219.8,3218.8,0.55]
[1737618167886,3.10594,3219.7,3218.9,3.93905]
[1737618168228,3.10628,3219.3,3218.7,3.10679]
[1737618169424,3.80375,3219.3,3218.7,3.10679]
[1737618170429,3.86866,3219.2,3218.5,6.83725886]
[1737618170642,0.7623,3219.2,3218.5,0.62332886]
[1737618170802,0.7623,3219.2,3218.9,3.10664]
[1737618174331,0.7623,3219.4,3218.9,3.10664]
[1737618176489,0.7623,3219.4,3219.0,3.10655]
[1737618178232,0.7623,3219.4,3218.8,3.93906]
[1737618178591,0.7623,3219.4,3218.9,3.10658]
[1737618180639,0.7623,3219.4,3219.0,3.10655]
[1737618181341,0.7623,3219.4,3219.1,3.10637]
[1737618181638,0.7623,3219.6,3219.3,3.10624]
[1737618182298,0.7623,3219.6,3219.1,6.21275]
[1737618182640,0.7623,3219.6,3219.2,3.10633]
[1737618182997,0.7623,3219.6,3219.1,3.10637]
[1737618183198,4.56567,3219.6,3218.8,0.8324]
[1737618183398,4.56567,3219.6,3218.8,3.93914]
[1737618183711,3.1061,3219.5,3219.0,3.10653]
[1737618184955,3.1061,3219.5,3218.8,0.8324]
[1737618185246,3.89387,3219.2,3218.7,3.10683]
[1737618186043,0.7875,3219.2,3218.8,3.10674]
[1737618186937,0.7875,3219.2,3218.5,4.52311886]
[1737618186938,0.7875,3219.2,3218.6,3.10686]
[1737618187112,0.7875,3219.2,3218.5,1.41612886]
[1737618187315,0.7875,3219.2,3218.8,3.10674]
[1737618188555,0.7875,3219.5,3218.9,3.10664]
[1737618188751,0.7875,3219.5,3219.0,3.10647]
[1737618189111,1.246588,3219.5,3218.8,0.3]
[1737618189427,3.10619,3219.4,3218.8,3.40674]
[1737618190447,1.246588,3219.5,3218.9,3.10662]
[1737618190622,4.352688,3219.5,3218.9,3.10662]
[1737618191815,1.246588,3219.5,3218.9,3.10662]
[1737618192455,4.352678,3219.5,3218.9,3.10662]
[1737618192764,0.7458658,3219.4,3218.9,3.10662]
[1737618193050,4.352678,3219.5,3218.9,3.10662]
[1737618196151,0.459088,3219.5,3218.8,0.3]
[1737618196458,3.10653,3219.1,3218.8,0.3]
[1737618198256,0.7875,3219.2,3218.8,0.3]
[1737618198414,0.7875,3219.2,3218.8,3.40665]
[1737618203360,0.7875,3219.2,3218.8,0.3]
[1737618205464,0.7923,3219.5,3218.8,0.3]
[1737618205646,0.389832,3219.4,3218.8,3.40666]
[1737618205847,3.89839,3219.5,3218.9,3.10664]
[1737618206463,3.89839,3219.5,3218.9,3.09988899]
[1737618207661,3.89839,3219.5,3219.1,0.3]
[1737618207967,0.7923,3219.5,3219.1,0.3]
[1737618208170,3.1058,3219.8,3219.1,0.3]
[1737618208376,0.7923,3219.8,3219.3,3.10619]
[1737618209380,3.10589,3219.7,3219.1,3.40643]
[1737618209584,3.10608,3219.5,3219.1,0.3]
[1737618210657,3.89849,3219.4,3219.1,0.3]
[1737618210971,3.10627,3219.3,3219.1,0.3]
[1737618211947,0.7923,3219.4,3219.1,0.3]
[1737618216690,3.10562,3220.0,3219.1,0.3]
[1737618216691,0.8272,3220.0,3219.4,3.1061]
[1737618216889,0.8272,3220.0,3219.6,3.10593]
[1737618218151,3.9328,3220.0,3219.5,3.10606]
[1737618219050,3.9328,3220.0,3219.4,0.55]
[1737618219265,3.9328,3220.0,3219.4,3.65614]
[1737618221103,3.9328,3220.0,3219.5,3.10605]
[1737618223400,0.8272,3220.0,3219.5,3.10605]
[1737618224090,3.93286,3220.0,3219.4,0.55]
[1737618224321,3.93286,3220.0,3219.4,3.65608]
[1737618224482,3.93286,3220.0,3219.5,3.10605]
[1737618227968,3.93286,3220.0,3219.3,3.10619]
[1737618228126,3.10569,3219.9,3219.3,3.10619]
[1737618229406,3.10569,3219.9,3219.4,3.10616]
[1737618229778,3.10569,3219.9,3219.3,3.13724922]
[1737618229978,3.10569,3219.9,3219.3,3.10619]
[1737618230318,3.10569,3219.9,3219.3,6.21238]
[1737618230731,3.10569,3219.9,3219.3,3.10619]
[1737618230936,3.10569,3219.9,3219.4,3.10616]
[1737618232333,0.8272,3220.0,3219.5,3.10605]
[1737618232508,3.93279,3220.0,3219.5,3.10605]
[1737618232690,3.93279,3220.0,3219.3,3.10619]
[1737618232891,3.93279,3220.0,3219.3,6.21237]
[1737618233089,3.93279,3220.0,3219.4,3.10616]
[1737618236967,3.10575,3219.9,3219.3,0.55]
[1737618237138,3.10575,3219.9,3219.3,3.6562]
[1737618240594,3.10575,3219.9,3219.3,0.55]
[1737618240800,3.10575,3219.9,3219.4,3.10614]
[1737618242705,0.8272,3220.0,3219.5,3.10604]
[1737618242903,3.93279,3220.0,3219.4,3.10612]
[1737618245210,3.10569,3219.9,3219.4,3.10612]
[1737618245417,0.8271,3219.8,3219.2,3.65631]
[1737618245567,0.8271,3219.8,3219.3,3.10624]
[1737618246202,0.8271,3219.8,3219.4,3.10616]
[1737618248969,0.8271,3219.8,3219.5,3.10602]
[1737618249799,0.8271,3219.8,3219.4,3.10616]
[1737618249981,0.8271,3219.8,3219.4,6.21224]
[1737618250288,0.8271,3220.0,3219.4,3.10608]
[1737618251271,0.8271,3220.0,3219.6,3.10593]
[1737618252511,0.8271,3220.0,3219.4,3.10608]
[1737618252712,3.9327,3220.0,3219.4,3.10608]
[1737618253617,0.8271,3219.9,3219.4,3.10608]
[1737618253813,0.8271,3219.9,3219.2,3.10632]
[1737618253814,3.10575,3219.9,3219.2,3.10632]
[1737618254021,3.10594,3219.7,3219.1,3.91774742]
[1737618254216,3.10599,3219.6,3219.1,3.91774742]
[1737618254601,3.93296,3219.8,3219.1,3.91774742]
[1737618255597,0.8271,3219.8,3219.2,3.10635]
[1737618255798,0.8271,3219.8,3219.4,3.1061]
[1737618256003,0.8271,3219.8,3219.6,3.10597]
[1737618256623,0.8271,3219.8,3219.6,3.10591]
[1737618256920,0.8271,3219.8,3219.7,3.10587]
[1737618257888,3.93241,3220.3,3219.7,3.10587]
[1737618258106,3.809166,3220.2,3219.7,3.10587]
[1737618258321,0.703766,3220.2,3219.7,3.10587]
[1737618258826,0.703766,3220.2,3219.7,6.21168]
[1737618259143,0.703766,3220.2,3219.7,3.10581]
[1737618259300,0.8271,3220.3,3219.9,3.1056]
[1737618260225,0.8271,3220.3,3220.0,3.10557]
[1737618260618,0.8271,3220.3,3219.9,3.1056]
[1737618263942,0.8271,3220.3,3219.7,3.10584]
[1737618264232,0.70376,3220.2,3219.7,3.10584]
[1737618264999,0.70376,3220.2,3219.8,3.10577]
[1737618266426,0.70376,3220.2,3219.8,6.21149]
[1737618266625,0.8271,3220.3,3219.9,3.10567]
[1737618267848,3.90158,3220.7,3219.9,3.92413]
[1737618268142,3.90158,3220.7,3220.1,3.10546]
[1737618268811,3.90171,3220.5,3219.9,3.10563]
[1737618269016,3.10556,3220.1,3219.5,3.10602]
[1737618269217,0.7966,3220.0,3219.5,3.10602]
[1737618269905,0.7966,3220.4,3220.0,3.10553]
[1737618275043,0.7966,3220.4,3219.8,3.10571]
[1737618276547,0.8129,3220.2,3219.8,3.10571]
[1737618277854,0.8129,3220.2,3219.7,3.1058]
[1737618278742,0.8129,3220.2,3219.8,3.10571]
[1737618279754,0.8129,3220.2,3219.9,3.10567]
[1737618283253,0.8129,3220.2,3220.0,3.10556]
[1737618283471,0.8129,3220.7,3220.1,3.10543]
[1737618284864,0.8129,3220.7,3220.3,3.10526]
[1737618285163,0.7755,3221.2,3220.8,3.10475]
[1737618288102,3.87995,3221.2,3220.6,3.10497]
[1737618288529,3.87995,3221.2,3220.6,3.10493]
[1737618290777,0.7755,3221.2,3220.7,3.1049]
[1737618291138,0.7755,3221.2,3220.8,3.1048]
[1737618295087,0.7755,3221.2,3220.9,3.10471]
[1737618295264,0.7755,3221.2,3220.8,3.1048]
[1737618296291,3.89045,3221.4,3220.8,3.1048]
[1737618297171,3.89045,3221.4,3220.8,6.20954]
[1737618297378,3.89045,3221.4,3220.8,3.10474]
[1737618298688,3.89045,3221.4,3220.9,3.10469]
[1737618300795,3.89045,3221.4,3220.7,3.88079]
[1737618300796,0.7862,3221.4,3220.8,0.55]
[1737618300998,0.7862,3221.4,3220.7,0.7759]
[1737618300999,0.7862,3221.9,3221.4,3.10422]
[1737618301892,0.7862,3221.9,3221.2,3.10435]
[1737618301893,3.10393,3221.8,3221.2,3.10435]
[1737618302094,0.7862,3221.4,3220.8,3.10474]
[1737618302472,0.7862,3221.4,3220.8,3.10475]
[1737618302667,3.89044,3221.4,3220.8,3.10475]
[1737618302868,3.89044,3221.4,3220.6,3.10494]
[1737618302869,3.10434,3221.3,3220.6,3.10494]
[1737618303074,3.10453,3221.1,3220.6,3.10494]
[1737618303391,3.10434,3221.3,3220.6,6.20988]
[1737618303558,6.20876,3221.3,3220.6,3.10494]
[1737618303755,3.10434,3221.3,3220.6,3.10494]
[1737618304096,3.10434,3221.3,3220.7,3.10489]
[1737618304491,3.10434,3221.3,3220.6,3.10494]
[1737618304492,3.10443,3221.2,3220.6,3.10494]
[1737618305065,3.89048,3221.4,3220.8,3.10481]
[1737618306897,3.89045,3221.4,3220.8,3.10481]
[1737618308504,0.7862,3221.4,3221.1,3.10451]
[1737618308812,0.803,3221.8,3221.3,3.10433]
[1737618309706,0.803,3221.8,3221.4,3.10421]
[1737618310007,0.803,3221.8,3221.5,3.10414]
[1737618310797,0.803,3221.8,3221.3,3.10433]
[1737618311006,0.803,3221.8,3221.4,3.10423]
[1737618311903,0.803,3221.8,3221.3,3.10433]
[1737618312208,3.90714,3221.5,3220.9,3.10466]
[1737618312764,3.90714,3221.5,3220.7,3.10491]
[1737618312966,3.90739,3221.3,3220.7,3.10491]
[1737618314305,0.803,3221.3,3220.8,3.10475]
[1737618315972,0.803,3221.3,3220.7,3.10491]
[1737618316178,0.803,3221.3,3220.9,3.1047]
[1737618317178,0.803,3221.3,3221.0,3.10461]
[1737618317477,0.803,3221.3,3221.2,3.10443]
[1737618317731,0.803,3221.8,3221.3,3.10429]
[1737618318079,3.90686,3221.8,3221.1,3.10447]
[1737618318278,0.803,3221.8,3221.0,3.10457]
[1737618318569,0.803,3221.8,3221.2,3.10437]
[1737618318570,3.90691,3221.8,3221.2,3.10437]
[1737618318807,4.607982,3221.8,3221.2,3.10437]
[1737618319181,1.504072,3221.8,3221.3,3.10432]
[1737618319607,4.607992,3221.8,3221.2,3.10437]
[1737618320821,4.607992,3221.8,3221.3,3.10432]
[1737618321120,7.711932,3221.8,3221.2,3.10437]
[1737618321324,0.7711932,3221.7,3221.0,3.10459]
[1737618321627,0.8258,3221.6,3221.1,3.10447]
[1737618322125,0.8258,3221.6,3221.0,3.10455]
[1737618322332,3.1042,3221.5,3220.8,3.90298]
[1737618322493,3.1042,3221.5,3220.9,3.10471]
[1737618322828,3.1042,3221.5,3220.5,0.61370596]
[1737618322829,0.8258,3221.3,3220.6,3.10496]
[1737618323031,0.8258,3221.3,3220.8,3.10479]
[1737618323377,0.8258,3221.3,3221.0,3.10455]
[1737618324507,0.8258,3221.3,3221.1,3.10446]
[1737618324907,0.8258,3221.8,3221.2,3.10443]
[1737618325121,0.392959,3221.7,3221.1,0.0310433]
[1737618325325,0.8258,3221.8,3221.4,3.10417]
[1737618325495,0.8258,3221.8,3221.5,3.10411]
[1737618325833,0.8258,3221.8,3221.4,3.10417]
[1737618327229,3.92973,3221.8,3221.2,3.10441]
[1737618327600,0.8258,3221.8,3221.2,3.10441]
[1737618327927,0.8258,3221.8,3221.3,3.10431]
[1737618328083,3.92967,3221.8,3221.2,3.10436]
[1737618328280,3.10404,3221.7,3221.0,3.1046]
[1737618329241,3.10404,3221.7,3221.1,3.10448]
[1737618329584,0.8258,3221.8,3221.2,3.10439]
[1737618329989,3.92966,3221.8,3221.3,3.10432]
[1737618330185,3.92966,3221.8,3221.2,3.10439]
[1737618330489,0.8258,3221.8,3221.4,3.10416]
[1737618331930,3.92966,3221.8,3221.2,3.10439]
[1737618332230,0.8258,3221.8,3221.3,3.10427]
[1737618333177,0.8258,3221.8,3221.4,3.1042]
[1737618334134,0.8258,3221.8,3221.3,3.1043]
[1737618335202,3.92973,3221.8,3221.2,3.1044]
[1737618336131,0.8258,3221.8,3221.3,3.1043]
[1737618336625,0.8258,3221.8,3221.4,3.10422]
[1737618339933,0.8258,3221.8,3221.5,3.10413]
[1737618340100,3.10362,3222.1,3221.5,3.10413]
[1737618340437,0.8058,3221.9,3221.4,3.10422]
[1737618341237,3.90965,3221.9,3221.3,3.10431]
[1737618341439,3.10385,3221.8,3221.3,3.10431]
[1737618341734,0.8058,3221.9,3221.4,3.10421]
[1737618343633,0.8058,3222.1,3221.8,3.10385]
[1737618345420,3.10322,3222.5,3221.9,3.89195]
[1737618345753,3.10348,3222.2,3221.6,3.10402]
[1737618345922,3.90942,3222.1,3221.4,6.20837]
[1737618346093,3.90942,3222.1,3221.5,3.10413]
[1737618346525,3.90942,3222.1,3221.4,3.10416]
[1737618346710,3.10374,3222.0,3221.4,3.10416]
[1737618346903,3.10376,3221.9,3221.4,3.10416]
[1737618347325,7.01305,3222.1,3221.4,3.10416]
[1737618347510,3.10366,3222.0,3221.4,3.10416]
[1737618347705,0.8058,3221.8,3221.2,3.73577335]
[1737618347930,3.10395,3221.7,3221.2,3.10441]
[1737618348431,0.8058,3221.8,3221.2,3.10441]
[1737618348631,0.8058,3221.8,3221.3,3.10433]
[1737618349294,0.8058,3221.8,3221.4,3.10422]
[1737618351009,0.8058,3221.8,3221.4,6.20839]
[1737618351332,0.8058,3221.8,3221.5,3.10411]
[1737618351695,0.8058,3221.8,3221.4,3.10417]
[1737618351696,0.8058,3222.2,3221.7,3.10395]
[1737618352011,3.90903,3222.5,3222.0,3.10364]
[1737618352458,0.8058,3222.5,3222.1,3.10356]
[1737618352624,0.8058,3222.5,3222.0,0.03103452]
[1737618352828,3.9088,3222.7,3222.1,0.7882]
[1737618353239,3.9088,3222.7,3222.1,3.89175]
[1737618353750,0.8058,3222.7,3222.2,3.10341]
[1737618354447,0.8058,3222.7,3222.3,3.13432234]
[1737618354634,0.8058,3222.9,3222.4,3.10321]
[1737618355047,0.8058,3222.9,3222.3,3.10329]
[1737618355249,0.8058,3222.9,3222.5,3.10314]
[1737618355816,0.8058,3222.9,3222.3,3.10329]
[1737618356016,3.90867,3222.9,3222.3,3.10329]
[1737618356354,3.1029,3222.8,3222.2,3.10346]
[1737618357053,3.10299,3222.7,3222.2,3.10346]
[1737618357349,0.8058,3222.9,3222.2,3.10346]
[1737618357647,3.9086,3222.9,3222.3,0.55]
[1737618357817,3.10296,3222.8,3222.2,3.10345]
[1737618358850,3.804116,3222.8,3222.2,3.10345]
[1737618359862,3.804056,3222.8,3222.3,3.10337]
[1737618360022,3.804056,3222.8,3222.2,3.10345]
[1737618360222,3.1029,3222.8,3222.2,3.10345]
[1737618360422,3.1029,3222.8,3222.2,3.10343]
[1737618360626,0.8058,3222.9,3222.3,3.1033]
[1737618360820,0.8058,3222.9,3222.4,3.10326]
[1737618361438,0.8058,3222.9,3222.5,0.0310304]
[1737618361956,0.8058,3222.9,3222.4,3.10326]
[1737618363139,0.8058,3222.9,3222.5,3.10316]
[1737618363329,0.8058,3222.9,3222.4,3.10326]
[1737618366641,0.8058,3222.9,3222.5,3.10313]
[1737618367579,3.10261,3223.1,3222.5,3.10313]
[1737618367952,3.10271,3223.0,3222.5,3.10313]
[1737618368160,3.10271,3223.0,3222.3,3.93065]
[1737618368161,3.10271,3223.0,3222.3,3.93059]
[1737618368347,3.10261,3223.1,3222.4,3.10326]
[1737618368544,3.10261,3223.1,3222.3,3.93059]
[1737618368745,6.2053,3223.1,3222.5,3.10314]
[1737618369878,3.10261,3223.1,3222.5,3.10314]
[1737618370681,3.10261,3223.1,3222.3,3.93066]
[1737618370876,3.10276,3223.0,3222.3,3.93066]
[1737618371187,3.10276,3223.0,3222.3,7.03397]
[1737618371884,3.10276,3223.0,3222.4,3.10325]
[1737618372081,3.10261,3223.1,3222.3,3.93061]
[1737618372379,3.10281,3222.9,3222.3,3.93061]
[1737618372541,3.10281,3222.9,3222.4,3.10325]
[1737618372955,3.10261,3223.1,3222.5,3.10316]
[1737618373248,3.7779,3223.2,3222.5,0.03102955]
[1737618373445,3.10265,3223.1,3222.5,3.13412955]
[1737618374044,3.7779,3223.2,3222.5,3.13412955]
[1737618374045,6.88041,3223.2,3222.5,3.13417955]
[1737618375685,3.88041,3223.2,3222.5,3.13417955]
[1737618376088,0.7779,3223.7,3223.2,3.1025]
[1737618376279,0.7779,3223.7,3223.5,3.1022]
[1737618376597,0.7779,3224.2,3223.5,3.1022]
[1737618376893,0.7779,3224.2,3223.3,0.03102099]
[1737618376894,0.7779,3224.2,3223.9,3.10177]
[1737618377183,0.7779,3224.6,3224.1,3.10161]
[1737618377483,0.7779,3224.6,3224.2,3.10152]
[1737618377790,0.7779,3224.6,3224.3,3.1014]
[1737618378005,0.75,3224.8,3224.4,3.10126]
[1737618378150,0.75,3224.8,3224.5,3.13225115]
[1737618378350,0.75,3224.8,3224.7,3.10106]
[1737618378552,0.75,3224.8,3224.7,4.47836]
[1737618378776,0.75,3224.8,3224.7,4.50936653]
[1737618380979,0.0854291,3224.9,3224.7,4.50936653]
[1737618381189,0.0854291,3224.9,3224.8,3.65096]
[1737618381500,0.0854291,3224.9,3224.8,3.10096]
[1737618381791,0.0854291,3224.9,3224.7,3.92832]
[1737618381950,0.0854291,3224.9,3224.7,7.02934]
[1737618382172,0.8670291,3224.9,3224.3,3.85783]
[1737618382374,3.10103,3224.8,3224.2,3.10154]
[1737618382568,3.10109,3224.7,3223.9,3.13278915]
[1737618382766,0.8670291,3224.9,3224.1,3.10163]
[1737618383072,0.8670291,3224.9,3224.2,3.13246253]
[1737618383825,3.9679091,3224.9,3224.2,3.13246253]
[1737618384167,3.9679091,3224.9,3224.2,3.10145]
[1737618384372,3.10098,3224.8,3224.2,3.10152]
[1737618384904,3.10117,3224.6,3223.9,3.10181]
[1737618385105,3.10147,3224.3,3223.7,3.10199]
[1737618385399,0.7816,3224.5,3223.5,3.10215]
[1737618385601,3.10167,3224.1,3223.5,3.10215]
[1737618386173,3.10167,3224.1,3223.4,0.7564]
[1737618386174,0.7816,3224.0,3223.3,3.10239]
[1737618386519,0.7816,3224.0,3223.5,3.10219]
[1737618387420,3.10184,3223.9,3223.1,0.7564]
[1737618387587,3.10184,3223.9,3223.2,3.10248]
[1737618387791,3.10203,3223.7,3223.0,3.10262]
[1737618387974,3.10212,3223.6,3223.0,3.10262]
[1737618388180,3.10195,3223.8,3223.1,3.10253]
[1737618389015,3.10205,3223.7,3223.0,3.10262]
[1737618389221,3.10195,3223.8,3223.0,3.10262]
[1737618389373,3.10203,3223.7,3223.1,3.10258]
[1737618389799,3.88336,3224.0,3223.2,0.03102354]
[1737618390117,3.88336,3224.0,3223.4,3.1023]
[1737618390421,3.88336,3224.0,3223.3,3.10231]
[1737618390631,0.7816,3224.4,3223.5,3.85861]
[1737618391012,3.10168,3224.1,3223.4,3.10229]
[1737618391222,0.7816,3223.9,3223.4,3.10229]
[1737618391748,0.7816,3223.9,3223.2,3.1025]
[1737618391903,0.7816,3223.9,3223.4,3.1023]
[1737618392343,0.7816,3223.9,3223.2,3.1025]
[1737618392543,3.88347,3223.9,3223.2,3.1025]
[1737618392901,3.88347,3223.9,3223.4,3.10231]
[1737618393102,0.7816,3223.9,3223.4,3.10231]
[1737618393439,0.7816,3224.1,3223.3,0.03102054]
[1737618393598,3.88328,3224.1,3223.5,3.10218]
[1737618393799,3.10184,3223.9,3223.1,3.13360054]
[1737618394036,3.10192,3223.9,3223.2,3.10247]
[1737618394216,3.10173,3224.0,3223.2,3.10247]
[1737618394413,3.102,3223.8,3223.2,3.10247]
[1737618394729,3.102,3223.8,3223.1,3.1026]
[1737618395233,3.102,3223.8,3223.2,3.10248]
[1737618397448,3.88325,3224.1,3223.5,3.10218]
[1737618397648,0.7816,3224.1,3223.5,3.10218]
[1737618398026,0.7816,3224.1,3223.6,3.10211]
[1737618398347,0.7816,3224.1,3223.5,3.10218]
[1737618399048,0.7816,3224.1,3223.3,3.10238]
[1737618399228,3.10178,3224.0,3223.4,3.10228]
[1737618400552,0.7999,3223.7,3223.1,3.10254]
[1737618401453,0.7999,3223.7,3223.2,3.10248]
[1737618401952,3.90194,3223.7,3223.1,3.10254]
[1737618402846,3.90194,3223.7,3223.2,3.1025]
[1737618403240,3.90167,3224.0,3222.9,0.7564]
[1737618403555,0.7999,3224.0,3223.6,3.10211]
[1737618404235,0.7999,3224.0,3223.5,3.1022]
[1737618405022,0.7999,3224.0,3223.5,6.20433]
[1737618405224,0.7999,3224.0,3223.6,3.1021]
[1737618408956,3.90163,3224.0,3223.4,3.10229]
[1737618409158,0.7999,3224.0,3223.5,3.1022]
[1737618409702,0.7999,3224.0,3223.6,3.1021]
[1737618410580,0.7999,3224.0,3223.7,3.10201]
[1737618410785,0.7999,3224.0,3223.6,3.1021]
[1737618413512,0.7999,3224.0,3223.6,6.20415]
[1737618413670,0.7999,3224.0,3223.6,3.10205]
[1737618415160,0.7999,3224.0,3223.4,3.10226]
[1737618415361,3.90163,3224.0,3223.5,3.10221]
[1737618415594,0.7999,3224.0,3223.5,3.10221]
[1737618417607,0.7999,3224.0,3223.6,3.10208]
[1737618420532,0.7999,3224.0,3223.4,6.20449]
[1737618420697,4.291854,3224.0,3223.4,3.10223]
[1737618421396,3.90171,3224.0,3223.4,3.10223]
[1737618422136,3.90171,3224.0,3223.4,6.20447]
[1737618422684,3.90171,3224.0,3223.5,3.1022]
[1737618424127,3.90171,3224.0,3223.3,3.10233]
[1737618424900,3.90171,3224.0,3223.4,3.10229]
[1737618425085,3.10185,3223.9,3223.4,3.10229]
[1737618426510,3.90171,3224.0,3223.4,3.10229]
[1737618427519,3.90171,3224.0,3223.4,6.20452]
[1737618427718,3.90171,3224.0,3223.4,3.10223]
[1737618427916,3.10183,3223.9,3223.4,3.10223]
[1737618428239,0.77,3223.8,3223.4,6.20447]
[1737618428838,0.77,3223.8,3223.4,3.10223]
[1737618429021,0.77,3223.8,3223.5,3.1022]
[1737618430655,0.77,3223.8,3223.4,3.10223]
[1737618430805,0.77,3223.8,3223.2,3.10246]
[1737618431005,0.77,3223.8,3223.4,3.10222]
[1737618431205,0.77,3223.8,3223.5,3.10221]
[1737618432942,0.77,3223.8,3223.6,3.10202]
[1737618433149,0.77,3223.8,3223.6,3.10206]
[1737618433309,0.77,3224.2,3223.9,3.10176]
[1737618434321,0.77,3224.2,3224.0,3.10171]
[1737618434932,0.77,3224.2,3223.9,3.10176]
[1737618435233,0.77,3224.2,3223.9,3.1018]
[1737618435435,0.77,3224.2,3223.9,6.20357]
[1737618435836,0.77,3224.2,3224.0,3.10169]
[1737618436549,0.77,3224.2,3224.1,3.10164]
[1737618436744,3.87109,3224.7,3224.1,3.10164]
[1737618436945,0.59322712,3224.6,3224.1,3.10164]
[1737618437171,0.59322712,3224.6,3223.7,0.03101727]
[1737618437346,3.87109,3224.7,3224.1,3.10158]
[1737618437950,6.97224,3224.7,3224.1,3.10158]
[1737618438254,3.10116,3224.6,3224.1,3.10158]
[1737618438835,0.77,3224.5,3224.1,3.10158]
[1737618439037,0.77,3224.5,3223.9,3.1018]
[1737618439335,4.258369,3224.5,3224.0,3.10173]
[1737618440039,4.258369,3224.5,3223.9,3.10174]
[1737618440266,0.8315,3224.4,3223.7,3.10201]
[1737618440471,0.8315,3224.4,3223.3,3.10232]
[1737618440647,0.8315,3224.0,3223.5,3.10221]
[1737618441351,0.8315,3224.0,3223.6,3.10211]
[1737618441679,0.8315,3224.0,3223.7,3.10202]
[1737618442355,0.8315,3224.3,3223.8,3.10187]
[1737618442867,0.8315,3224.8,3224.0,3.87877]
[1737618443064,3.93247,3224.8,3224.2,3.10148]
[1737618443265,3.93247,3224.8,3224.3,3.10143]
[1737618443845,0.8315,3224.8,3224.3,3.10143]
[1737618444064,0.8315,3224.8,3224.5,3.10125]
[1737618444241,0.0854291,3224.9,3224.6,3.10114]
[1737618444640,0.0854291,3224.9,3224.5,3.10125]
[1737618446595,0.0854291,3224.9,3224.1,3.13260143]
[1737618446894,0.0854291,3224.9,3224.8,3.10096]
[1737618447098,0.0854291,3224.9,3224.8,6.13196542]
[1737618447390,0.0854291,3224.9,3224.8,6.90906542]
[1737618447588,0.0854291,3224.9,3224.8,6.87806]
[1737618453708,0.0854291,3224.9,3224.8,6.10096]
[1737618454590,0.0854291,3224.9,3224.8,3.10096]
[1737618454794,0.0854291,3224.9,3224.6,3.10107]
[1737618454998,0.0854291,3224.9,3224.8,3.10096]
[1737618459412,0.0854291,3224.9,3224.8,3.92426]
[1737618460674,0.0854291,3224.9,3224.8,6.92426]
[1737618467343,0.0854291,3224.9,3224.8,6.10096]
[1737618470614,0.0854291,3224.9,3224.8,6.13196581]
[1737618470820,0.0854291,3224.9,3224.8,6.95526581]
[1737618471114,0.0854291,3224.9,3224.8,6.92426]
[1737618475467,0.0854291,3224.9,3224.8,6.10096]
[1737618477523,0.0854291,3224.9,3224.8,6.85746]
[1737618482463,0.0854291,3224.9,3224.8,7.40746]
[1737618482867,3.09937,3226.5,3224.8,7.40746]
[1737618482868,3.09917,3226.7,3225.9,0.7565]
[1737618483180,0.8185,3227.2,3226.4,0.7565]
[1737618483379,0.8185,3227.2,3226.8,3.0]
[1737618483638,1.3894769,3227.5,3227.0,3.09877]
[1737618483949,3.6193969,3227.5,3226.6,3.09921]
[1737618484144,1.18043969,3227.4,3226.7,0.03098955]
[1737618484360,0.8185,3227.4,3227.0,3.09882]
[1737618484558,0.5209769,3227.5,3227.4,3.09846]
[1737618485556,0.5209769,3227.5,3227.0,0.7565]
[1737618485756,1.3394769,3227.5,3227.0,3.09883]
[1737618486094,1.3394769,3227.5,3227.1,3.0]
[1737618486287,1.3394769,3227.5,3227.0,3.09883]